bitfinex/quotes_BTCUSD_20240828
["timestamp","ask_amount","ask_price","bid_price","bid_amount"]
[1724803525128,0.28194135,59412.0,59411.0,0.0004]
[1724803525423,1.43253972,59412.0,59411.0,0.0004]
[1724803525636,1.14603428,59412.0,59411.0,0.0004]
[1724803525837,1.0090995,59412.0,59411.0,0.0004]
[1724803526252,1.0080995,59412.0,59411.0,0.0004]
[1724803526379,1.3447315,59412.0,59411.0,0.0004]
[1724803526583,1.51328314,59412.0,59411.0,0.0004]
[1724803527213,1.59168314,59412.0,59411.0,0.0004]
[1724803527409,1.60488899,59412.0,59411.0,0.0004]
[1724803527629,1.92831514,59412.0,59411.0,0.0004]
[1724803527862,1.93231514,59412.0,59411.0,0.0004]
[1724803527996,1.9824417,59412.0,59411.0,0.0004]
[1724803528201,1.92831514,59412.0,59411.0,0.0004]
[1724803528424,1.93931514,59412.0,59411.0,0.0004]
[1724803528977,1.93931514,59412.0,59395.0,0.00818]
[1724803528978,1.318669,59404.0,59395.0,0.00818]
[1724803529104,2.07877215,59404.0,59395.0,0.00818]
[1724803529935,1.17853,59396.0,59395.0,0.00818]
[1724803530108,0.59178715,59396.0,59395.0,0.00818]
[1724803530317,0.42342615,59396.0,59395.0,0.00818]
[1724803530494,0.59178715,59396.0,59395.0,0.00818]
[1724803530700,0.0783,59409.0,59395.0,0.00818]
[1724803530701,0.32342615,59403.0,59395.0,0.07278]
[1724803530932,0.49176815,59403.0,59395.0,0.07278]
[1724803531135,0.168346,59402.0,59395.0,0.07278]
[1724803531363,0.32342615,59403.0,59395.0,0.07278]
[1724803531560,0.001,59396.0,59395.0,0.07614696]
[1724803531944,0.32342615,59403.0,59395.0,0.07278]
[1724803532155,0.16835,59400.0,59395.0,0.07378]
[1724803532355,0.01673759,59402.0,59395.0,0.07378]
[1724803532569,0.01592339,59399.0,59395.0,0.07278]
[1724803532770,0.001,59396.0,59395.0,0.07814688]
[1724803533209,0.001,59396.0,59395.0,0.06183]
[1724803533615,0.01692339,59396.0,59395.0,0.06183]
[1724803533819,0.314161,59396.0,59395.0,0.002]
[1724803534017,0.01692339,59396.0,59395.0,0.002]
[1724803534612,0.01592339,59396.0,59394.0,0.00818]
[1724803534829,0.505092,59395.0,59394.0,0.00818]
[1724803535251,0.01597355,59395.0,59394.0,0.00818]
[1724803535469,0.18433755,59395.0,59394.0,0.00818]
[1724803535678,0.01597355,59395.0,59394.0,0.00818]
[1724803536534,0.3403997,59395.0,59394.0,0.00818]
[1724803537060,0.5087637,59395.0,59394.0,0.00818]
[1724803537324,0.8454917,59395.0,59394.0,0.00818]
[1724803537530,1.6600477,59395.0,59394.0,0.00818]
[1724803537728,1.10089355,59395.0,59394.0,0.01018]
[1724803538511,1.09889355,59395.0,59394.0,0.00818]
[1724803538725,1.09989355,59395.0,59394.0,0.00818]
[1724803539072,1.10089355,59395.0,59394.0,0.00818]
[1724803539209,1.54804783,59395.0,59394.0,0.00818]
[1724803539407,1.54804783,59395.0,59394.0,0.00918]
[1724803540267,1.178607,59392.0,59378.0,0.0821]
[1724803540410,1.60203315,59392.0,59378.0,0.0821]
[1724803540628,1.78372744,59392.0,59378.0,0.0821]
[1724803540828,2.12047244,59392.0,59378.0,0.0821]
[1724803541443,1.6151758,59392.0,59378.0,0.0821]
[1724803541689,1.2784308,59392.0,59379.0,0.00336806]
[1724803542210,1.29190419,59392.0,59379.0,0.00336806]
[1724803542434,1.30190419,59392.0,59379.0,0.00336784]
[1724803542635,1.29890419,59392.0,59379.0,0.00336784]
[1724803542923,1.64564919,59392.0,59379.0,0.00336784]
[1724803543140,1.30190419,59392.0,59379.0,0.00336784]
[1724803543348,1.30490419,59392.0,59379.0,0.00336784]
[1724803543575,0.99453942,59392.0,59379.0,0.00336784]
[1724803543748,0.06599627,59392.0,59391.0,0.1458]
[1724803544091,0.06151442,59392.0,59391.0,0.1458]
[1724803544535,0.05851442,59392.0,59391.0,0.1458]
[1724803544817,0.06051442,59392.0,59391.0,0.1458]
[1724803545024,0.06051442,59392.0,59391.0,0.0831]
[1724803545341,0.06351442,59392.0,59391.0,0.0831]
[1724803545544,0.05004103,59392.0,59391.0,0.0831]
[1724803545743,0.05104103,59392.0,59391.0,0.0831]
[1724803545963,0.03604103,59392.0,59391.0,0.0831]
[1724803546972,0.0106608,59392.0,59391.0,0.0831]
[1724803548797,0.505245,59377.0,59361.0,0.08428]
[1724803548959,0.0632,59371.0,59361.0,0.08428]
[1724803549159,0.32342615,59362.0,59361.0,0.08428]
[1724803549369,0.49188315,59362.0,59361.0,0.08428]
[1724803549576,0.32342615,59362.0,59361.0,0.00818]
[1724803549805,0.33208695,59362.0,59361.0,0.00818]
[1724803550765,0.03505161,59362.0,59361.0,0.00818]
[1724803552153,0.03605161,59362.0,59361.0,0.01818]
[1724803552355,0.03605161,59362.0,59361.0,0.01418]
[1724803552356,0.0096608,59362.0,59361.0,0.01418]
[1724803552686,0.0096608,59362.0,59361.0,0.01318]
[1724803552687,0.40548557,59362.0,59361.0,0.01318]
[1724803553054,0.41502957,59362.0,59361.0,0.01518]
[1724803553251,0.41502957,59362.0,59361.0,0.01918]
[1724803553461,1.45656463,59362.0,59361.0,0.01218]
[1724803553664,0.250444,59362.0,59361.0,0.00818]
[1724803553868,0.65692957,59362.0,59361.0,0.01418]
[1724803554066,0.57502957,59362.0,59361.0,0.01418]
[1724803554278,0.57842957,59362.0,59361.0,0.01418]
[1724803554546,0.109544,59362.0,59361.0,0.01418]
[1724803554759,0.009544,59362.0,59361.0,0.01418]
[1724803554903,0.009544,59362.0,59361.0,0.02018]
[1724803555102,0.009544,59362.0,59361.0,0.01418]
[1724803555311,0.009544,59362.0,59361.0,0.00818]
[1724803555312,0.41402957,59362.0,59361.0,0.00818]
[1724803555492,0.010544,59362.0,59361.0,0.00818]
[1724803555697,0.010544,59362.0,59361.0,0.09884884]
[1724803555946,0.1684,59383.0,59361.0,0.09384884]
[1724803556117,0.50540786,59376.0,59363.0,0.0823]
[1724803556316,0.01249159,59382.0,59365.0,0.0823]
[1724803556317,0.00828112,59382.0,59365.0,0.0823]
[1724803556527,0.00421039,59383.0,59366.0,0.00186485]
[1724803556868,0.168402,59382.0,59366.0,0.00086485]
[1724803557077,0.00828112,59382.0,59367.0,0.0827]
[1724803557288,0.00828112,59382.0,59369.0,0.0827]
[1724803557502,0.400365,59389.0,59371.0,0.0775]
[1724803557503,0.17259503,59388.0,59371.0,0.0775]
[1724803557719,0.336723,59396.0,59362.0,0.0655]
[1724803557720,0.00828112,59381.0,59375.0,0.005]
[1724803557940,0.0009009,59404.0,59384.0,0.0775]
[1724803558138,0.0009009,59404.0,59387.0,0.005]
[1724803558139,0.50540786,59397.0,59387.0,0.005]
[1724803558340,0.02636045,59403.0,59392.0,0.0775]
[1724803558341,0.00828112,59403.0,59392.0,0.0775]
[1724803558506,0.0009009,59404.0,59392.0,0.0775]
[1724803558507,0.0009009,59404.0,59394.0,0.0775]
[1724803558724,0.0009009,59404.0,59396.0,0.0807]
[1724803558931,0.0009009,59404.0,59398.0,0.005]
[1724803559179,0.0009009,59404.0,59397.0,0.00085874]
[1724803559180,0.0009009,59404.0,59399.0,0.08655849]
[1724803559372,0.0009009,59404.0,59400.0,0.23456077]
[1724803559525,0.0009009,59404.0,59403.0,0.0855]
[1724803559715,0.0019009,59404.0,59403.0,0.0863571]
[1724803559910,0.0029009,59404.0,59403.0,0.0863571]
[1724803560359,0.0019009,59404.0,59403.0,0.0855]
[1724803560572,0.0009009,59404.0,59403.0,0.0805]
[1724803560712,0.0019009,59404.0,59403.0,0.0945]
[1724803561927,0.0009009,59404.0,59398.0,0.009]
[1724803562179,0.0019009,59404.0,59398.0,0.009]
[1724803562430,0.0019009,59404.0,59396.0,0.081]
[1724803562431,0.0019009,59404.0,59403.0,0.014]
[1724803562652,0.0019009,59404.0,59403.0,0.024]
[1724803562653,0.0029009,59404.0,59403.0,0.024]
[1724803562906,0.0019009,59404.0,59403.0,0.01]
[1724803563132,0.0009009,59404.0,59396.0,0.081]
[1724803563347,0.0019009,59404.0,59398.0,0.01]
[1724803563575,0.0029009,59404.0,59399.0,0.0058595]
[1724803563836,0.0039009,59404.0,59403.0,0.01]
[1724803564060,0.0039009,59404.0,59403.0,0.01085828]
[1724803564293,0.0039009,59404.0,59403.0,0.01]
[1724803565227,0.1722389,59404.0,59403.0,0.01]
[1724803565443,0.1712389,59404.0,59403.0,0.01]
[1724803565657,0.1712389,59404.0,59391.0,0.000819]
[1724803565658,0.02727307,59404.0,59391.0,0.000819]
[1724803565879,0.02827307,59404.0,59396.0,0.014]
[1724803566126,0.02827307,59404.0,59397.0,0.00086044]
[1724803566384,0.02827307,59404.0,59398.0,0.009]
[1724803566589,0.02727307,59404.0,59403.0,0.005]
[1724803566994,0.02727307,59404.0,59403.0,0.0871]
[1724803567192,0.02727307,59404.0,59403.0,0.0821]
[1724803568097,0.02727307,59404.0,59397.0,0.0854]
[1724803568707,0.02727307,59404.0,59397.0,0.0804]
[1724803568911,0.02727307,59404.0,59403.0,0.005]
[1724803569127,0.02727307,59404.0,59403.0,0.01]
[1724803569546,0.02727307,59404.0,59398.0,0.00085968]
[1724803569749,0.02827307,59404.0,59398.0,0.00085968]
[1724803569964,0.02927307,59404.0,59398.0,0.00085968]
[1724803570190,0.02827307,59404.0,59398.0,0.00085968]
[1724803570390,0.02727307,59404.0,59398.0,0.00085968]
[1724803570599,0.02727307,59404.0,59392.0,1.17227]
[1724803570600,0.02827307,59404.0,59403.0,0.008]
[1724803570804,0.25941107,59404.0,59403.0,0.008]
[1724803571200,0.09107307,59404.0,59403.0,0.008]
[1724803572112,0.08907307,59404.0,59393.0,0.00086043]
[1724803572307,0.09007307,59404.0,59403.0,0.012]
[1724803573031,0.09007307,59404.0,59403.0,0.008]
[1724803573245,0.25820843,59404.0,59403.0,0.008]
[1724803573474,0.35920843,59404.0,59403.0,0.008]
[1724803573696,0.18987043,59404.0,59403.0,0.008]
[1724803573911,0.43537457,59404.0,59403.0,0.008]
[1724803574154,0.43537457,59404.0,59391.0,0.000819]
[1724803574155,0.168372,59392.0,59391.0,0.000819]
[1724803574377,1.83149257,59392.0,59391.0,0.000819]
[1724803574820,0.752517,59392.0,59391.0,0.000819]
[1724803575038,1.15800257,59392.0,59391.0,0.000819]
[1724803575303,1.83149257,59392.0,59391.0,0.000819]
[1724803575510,2.00504421,59392.0,59391.0,0.001819]
[1724803575935,2.00504421,59392.0,59391.0,0.000819]
[1724803575936,2.33678921,59392.0,59391.0,0.000819]
[1724803576147,2.00904421,59392.0,59391.0,0.001819]
[1724803576346,2.0590251,59392.0,59391.0,0.001819]
[1724803576667,2.0570251,59392.0,59391.0,0.001819]
[1724803576872,2.0620251,59392.0,59391.0,0.002819]
[1724803577094,2.08000251,59392.0,59391.0,0.000819]
[1724803577305,2.00504421,59392.0,59391.0,0.000819]
[1724803577734,2.05502348,59392.0,59391.0,0.000819]
[1724803578550,2.34978921,59392.0,59391.0,0.001819]
[1724803578758,2.01304421,59392.0,59391.0,0.001819]
[1724803578955,2.08000251,59392.0,59391.0,0.000819]
[1724803579210,2.09000251,59392.0,59391.0,0.000819]
[1724803579410,2.08000251,59392.0,59391.0,0.000819]
[1724803579819,2.08600251,59392.0,59391.0,0.000819]
[1724803580018,2.08100251,59392.0,59391.0,0.000819]
[1724803580224,1.83149257,59392.0,59391.0,0.000819]
[1724803580427,1.84549257,59392.0,59391.0,0.000819]
[1724803580645,1.92045087,59392.0,59391.0,0.000819]
[1724803580820,1.91245087,59392.0,59391.0,0.000819]
[1724803581055,1.83749257,59392.0,59391.0,0.000819]
[1724803581271,1.84449257,59392.0,59391.0,0.000819]
[1724803581419,1.83849257,59392.0,59391.0,0.000819]
[1724803581858,1.50674757,59392.0,59391.0,0.000819]
[1724803582066,0.012,59392.0,59391.0,0.000819]
[1724803582265,0.517117,59392.0,59391.0,0.000819]
[1724803582427,0.853862,59392.0,59391.0,0.000819]
[1724803582622,0.512117,59392.0,59391.0,0.000819]
[1724803582880,0.505117,59392.0,59391.0,0.000819]
[1724803583082,0.510117,59392.0,59391.0,0.000819]
[1724803583303,0.510117,59392.0,59391.0,0.001819]
[1724803583450,0.04997182,59396.0,59391.0,0.000819]
[1724803583649,0.168371,59393.0,59391.0,0.000819]
[1724803583878,0.02738103,59392.0,59391.0,0.000819]
[1724803584055,0.61549803,59392.0,59391.0,0.000819]
[1724803584274,1.02185247,59392.0,59391.0,0.000819]
[1724803584472,0.02738103,59392.0,59391.0,0.000819]
[1724803584837,0.02638103,59392.0,59391.0,0.000819]
[1724803585016,0.02638103,59392.0,59391.0,0.001819]
[1724803585457,0.02638103,59392.0,59391.0,0.078319]
[1724803585667,0.00069826,59404.0,59391.0,0.078319]
[1724803585869,0.02637769,59399.0,59392.0,0.0008607]
[1724803586080,0.002,59393.0,59392.0,0.0008607]
[1724803586286,0.02637769,59399.0,59392.0,0.0008607]
[1724803586287,0.00089981,59403.0,59394.0,0.005]
[1724803586492,0.00089981,59403.0,59395.0,0.07875909]
[1724803587322,0.00089981,59403.0,59395.0,0.0779]
[1724803587946,0.00089981,59403.0,59396.0,0.00085911]
[1724803588150,0.00189981,59403.0,59396.0,0.00085911]
[1724803588683,0.00189981,59403.0,59397.0,0.005]
[1724803588886,0.00189981,59403.0,59395.0,0.017]
[1724803589135,0.00289981,59403.0,59395.0,0.017]
[1724803589348,0.00189981,59403.0,59396.0,0.0808]
[1724803589766,0.00289981,59403.0,59397.0,0.014]
[1724803590441,0.00189981,59403.0,59397.0,0.014]
[1724803590806,0.00289981,59403.0,59397.0,1.18627]
[1724803591170,0.00289981,59403.0,59397.0,1.17227]
[1724803591416,0.00289981,59403.0,59397.0,1.17427]
[1724803591608,0.00389981,59403.0,59397.0,1.17427]
[1724803591792,0.00389981,59403.0,59398.0,0.00085954]
[1724803592057,0.00289981,59403.0,59398.0,0.00085954]
[1724803592260,0.00289981,59403.0,59397.0,1.17427]
[1724803592460,0.00389981,59403.0,59397.0,1.18827]
[1724803592611,0.00189981,59403.0,59397.0,1.18627]
[1724803592820,0.00089981,59403.0,59397.0,1.17227]
[1724803593024,0.00189981,59403.0,59398.0,0.002]
[1724803593235,0.00189981,59403.0,59398.0,0.014]
[1724803593592,0.00289981,59403.0,59398.0,0.014]
[1724803593805,0.168353,59399.0,59398.0,0.014]
[1724803594572,0.168355,59398.0,59397.0,1.17227]
[1724803594772,0.02637363,59399.0,59397.0,1.18827]
[1724803594913,0.0395016,59399.0,59397.0,1.18827]
[1724803595316,0.0395016,59399.0,59397.0,1.17427]
[1724803595521,0.0405016,59399.0,59398.0,0.014]
[1724803595927,0.2877546,59399.0,59398.0,0.014]
[1724803596130,0.841777,59398.0,59397.0,0.002]
[1724803596415,0.941777,59398.0,59397.0,0.002]
[1724803596544,0.1,59398.0,59391.0,0.000819]
[1724803596759,0.1,59397.0,59391.0,0.000819]
[1724803597826,0.268359,59397.0,59391.0,0.000819]
[1724803598030,0.1,59397.0,59391.0,0.000819]
[1724803598233,0.006,59398.0,59391.0,0.000819]
[1724803598234,0.170355,59398.0,59391.0,0.000819]
[1724803598383,0.19202797,59399.0,59391.0,0.000819]
[1724803598384,0.1,59397.0,59392.0,0.081]
[1724803598948,0.101,59397.0,59392.0,0.081]
[1724803599449,0.47567726,59404.0,59392.0,0.081]
[1724803599674,0.003,59397.0,59392.0,0.08186145]
[1724803599879,0.004,59397.0,59392.0,0.08186145]
[1724803600003,0.001,59397.0,59393.0,0.0653]
[1724803600208,0.004,59397.0,59394.0,0.0008604]
[1724803600627,0.004,59397.0,59393.0,0.0653]
[1724803600849,0.004,59397.0,59392.0,0.081]
[1724803600850,0.003,59397.0,59392.0,0.08186126]
[1724803601056,0.02637455,59398.0,59392.0,0.08186126]
[1724803601252,0.02637455,59398.0,59392.0,0.08286126]
[1724803601454,0.001,59397.0,59394.0,0.002]
[1724803601926,0.001,59397.0,59395.0,0.00086102]
[1724803602126,0.002,59397.0,59396.0,0.0797]
[1724803602355,0.002,59397.0,59396.0,0.17285963]
[1724803602569,0.001,59397.0,59396.0,0.3413204]
[1724803602690,0.001,59397.0,59396.0,0.167]
[1724803602893,0.002,59397.0,59396.0,0.167]
[1724803603380,0.001,59397.0,59396.0,0.14485947]
[1724803603571,0.002,59397.0,59396.0,0.16785947]
[1724803603983,0.001,59397.0,59396.0,0.16785947]
[1724803604290,0.001,59397.0,59396.0,0.181]
[1724803604489,0.001,59397.0,59396.0,0.195]
[1724803604840,0.001,59397.0,59396.0,0.181]
[1724803605046,0.001,59397.0,59396.0,0.0937]
[1724803605251,0.001,59397.0,59396.0,0.028]
[1724803605655,0.02737306,59397.0,59396.0,0.014]
[1724803606055,0.02737306,59397.0,59396.0,0.028]
[1724803606466,0.19573106,59397.0,59396.0,0.028]
[1724803606672,0.169358,59397.0,59396.0,0.028]
[1724803606866,0.168358,59397.0,59396.0,0.014]
[1724803607276,0.168358,59397.0,59391.0,0.000819]
[1724803607542,0.00420875,59398.0,59396.0,0.014]
[1724803608038,0.00420875,59398.0,59396.0,0.013]
[1724803608469,0.01317561,59399.0,59391.0,0.000819]
[1724803608841,0.418594,59402.0,59396.0,0.014]
[1724803608842,0.00420909,59398.0,59396.0,0.014]
[1724803608959,0.00420908,59399.0,59396.0,0.014]
[1724803609155,0.17256208,59399.0,59396.0,0.014]
[1724803609560,0.00420908,59399.0,59396.0,0.014]
[1724803609825,0.168357,59398.0,59396.0,0.014]
[1724803610045,0.00420909,59397.0,59396.0,0.008]
[1724803610367,0.001,59398.0,59396.0,0.093]
[1724803610560,0.001,59398.0,59397.0,0.00086035]
[1724803611164,0.00089981,59403.0,59396.0,0.079]
[1724803611539,0.001,59397.0,59396.0,0.01]
[1724803611739,0.00089981,59403.0,59396.0,0.075]
[1724803612005,0.00089981,59403.0,59397.0,0.01086019]
[1724803612181,0.00089981,59403.0,59398.0,0.0662]
[1724803612358,0.00089981,59403.0,59400.0,0.077132]
[1724803612566,0.00089981,59403.0,59401.0,0.00085922]
[1724803612961,0.00089981,59403.0,59400.0,0.077132]
[1724803613142,0.00089981,59403.0,59400.0,0.076132]
[1724803613771,0.00189981,59403.0,59401.0,0.012]
[1724803613974,0.00189981,59403.0,59400.0,0.076132]
[1724803614270,0.00189981,59403.0,59400.0,0.089132]
[1724803614446,0.00289981,59403.0,59400.0,0.101132]
[1724803614670,0.00189981,59403.0,59401.0,0.00085972]
[1724803615081,0.00289981,59403.0,59401.0,0.01285972]
[1724803615517,0.00289981,59403.0,59401.0,0.012]
[1724803615927,0.00289981,59403.0,59401.0,0.01285972]
[1724803616878,0.00089981,59403.0,59401.0,0.00085972]
[1724803617083,0.00089981,59403.0,59401.0,0.01385972]
[1724803617854,0.00069717,59403.0,59401.0,0.01385972]
[1724803618030,0.00069717,59403.0,59401.0,0.013]
[1724803618442,0.23433917,59403.0,59401.0,0.024]
[1724803618742,0.5092415,59402.0,59401.0,0.024]
[1724803618978,0.8459305,59402.0,59401.0,0.024]
[1724803619182,0.87228667,59402.0,59401.0,0.024]
[1724803619444,1.51072618,59402.0,59401.0,0.024]
[1724803619642,1.39207567,59402.0,59401.0,0.011]
[1724803619967,0.841807,59396.0,59395.0,0.000818]
[1724803620175,0.86816317,59396.0,59395.0,0.000818]
[1724803620600,0.94946317,59396.0,59395.0,0.000818]
[1724803620844,1.04003981,59396.0,59395.0,0.000818]
[1724803621051,1.37676281,59396.0,59395.0,0.000818]
[1724803621226,1.54531445,59396.0,59395.0,0.000818]
[1724803621456,1.98203745,59396.0,59395.0,0.007818]
[1724803621678,0.168418,59376.0,59363.0,0.798]
[1724803621868,0.168426,59373.0,59362.0,0.5495]
[1724803622082,0.168442,59368.0,59361.0,0.00818]
[1724803622305,0.0642,59375.0,59361.0,0.00818]
[1724803622306,0.168447,59366.0,59361.0,0.00818]
[1724803622533,0.17265223,59368.0,59361.0,0.00818]
[1724803622738,0.505372,59362.0,59361.0,0.00818]
[1724803622939,0.336904,59364.0,59361.0,0.00818]
[1724803623088,0.1726677,59363.0,59361.0,0.00818]
[1724803623292,0.0609,59362.0,59361.0,0.00818]
[1724803623501,0.566272,59362.0,59361.0,0.00818]
[1724803623707,1.47379627,59362.0,59361.0,0.00818]
[1724803623902,1.57479627,59362.0,59361.0,0.03618]
[1724803624311,1.57479627,59362.0,59361.0,0.00818]
[1724803624312,1.91071127,59362.0,59361.0,0.00818]
[1724803624655,1.58791886,59362.0,59361.0,0.02218]
[1724803624841,1.61491886,59362.0,59361.0,0.00818]
[1724803625053,1.179402,59352.0,59351.0,0.00818]
[1724803625242,1.48851809,59352.0,59351.0,0.00818]
[1724803625449,1.53847622,59352.0,59351.0,0.00818]
[1724803625875,1.5648749,59352.0,59351.0,0.00818]
[1724803626091,1.2279029,59352.0,59351.0,0.00818]
[1724803626293,0.43618468,59352.0,59351.0,0.00818]
[1724803626713,0.12939868,59352.0,59351.0,0.00818]
[1724803626971,0.003,59352.0,59351.0,0.00818]
[1724803627176,0.008,59352.0,59351.0,0.00918]
[1724803627575,0.001,59352.0,59351.0,0.00818]
[1724803627928,0.005,59352.0,59351.0,0.00818]
[1724803628758,0.004,59352.0,59351.0,0.00818]
[1724803628961,0.004,59352.0,59351.0,0.01018]
[1724803629337,0.1,59360.0,59351.0,0.01018]
[1724803629544,0.04982623,59368.0,59351.0,0.01018]
[1724803629545,0.04982623,59369.0,59353.0,0.0806]
[1724803629773,0.50540786,59377.0,59357.0,0.005]
[1724803629975,0.50540786,59377.0,59358.0,1.20113515]
[1724803630129,0.229496,59384.0,59361.0,0.005]
[1724803630348,0.50540786,59392.0,59369.0,0.005]
[1724803630546,0.50540786,59392.0,59372.0,0.005]
[1724803630751,0.00089981,59397.0,59380.0,0.0636]
[1724803630964,0.50540786,59393.0,59380.0,0.0636]
[1724803631164,0.00089981,59397.0,59381.0,0.00086325]
[1724803631420,0.168363,59396.0,59381.0,0.00086325]
[1724803631727,0.00089981,59397.0,59383.0,0.005]
[1724803631958,0.00089981,59397.0,59380.0,0.0636]
[1724803632393,0.00510899,59397.0,59380.0,0.0636]
[1724803632564,0.001,59392.0,59381.0,0.00086196]
[1724803632774,0.001,59392.0,59382.0,0.075]
[1724803633068,0.34182599,59397.0,59383.0,0.004]
[1724803633069,0.336723,59396.0,59383.0,0.004]
[1724803633317,0.02638042,59390.0,59384.0,0.00086232]
[1724803634078,0.02638042,59390.0,59381.0,0.009]
[1724803635307,0.02638042,59390.0,59360.0,0.50540786]
[1724803635570,0.02638042,59390.0,59384.0,0.012]
[1724803635971,0.02738042,59390.0,59385.0,0.023]
[1724803636185,0.02738042,59390.0,59386.0,0.16846077]
[1724803636400,0.00089981,59397.0,59387.0,0.023]
[1724803636605,0.001,59390.0,59388.0,0.16846077]
[1724803636850,0.001,59390.0,59389.0,0.023]
[1724803637075,0.00089981,59397.0,59390.0,0.1029]
[1724803637284,0.00089981,59397.0,59391.0,0.19146077]
[1724803637522,0.00089981,59397.0,59392.0,1.5]
[1724803637652,0.00089981,59397.0,59393.0,0.26866077]
[1724803639451,0.00089981,59397.0,59394.0,0.0242]
[1724803639695,0.50540786,59427.0,59401.0,0.40478809]
[1724803639871,0.50540786,59427.0,59402.0,1.74546077]
[1724803640023,0.50540786,59427.0,59402.0,1.86846077]
[1724803640234,0.50540786,59427.0,59402.0,1.79146077]
[1724803640432,0.50540786,59427.0,59404.0,0.0337]
[1724803640810,0.50540786,59427.0,59408.0,0.16846077]
[1724803641126,0.50540786,59427.0,59409.0,1.523]
[1724803641334,0.002,59438.0,59410.0,0.16846077]
[1724803641539,0.18665239,59439.0,59412.0,0.0751]
[1724803641724,0.168242,59438.0,59413.0,0.19146077]
[1724803641870,0.168245,59437.0,59414.0,1.5]
[1724803642066,0.18665339,59439.0,59416.0,0.0751]
[1724803642313,0.18665039,59439.0,59417.0,0.21476077]
[1724803642496,0.268243,59438.0,59417.0,0.21476077]
[1724803642699,0.102,59438.0,59417.0,0.21476077]
[1724803643040,0.1,59437.0,59417.0,0.21476077]
[1724803643239,0.1,59437.0,59418.0,0.0824]
[1724803643471,0.0664,59445.0,59420.0,0.0824]
[1724803643807,0.00089981,59448.0,59422.0,0.08]
[1724803644020,0.00089981,59448.0,59424.0,0.08]
[1724803644228,0.00089981,59448.0,59423.0,0.19176077]
[1724803644229,0.00089981,59448.0,59426.0,0.08]
[1724803644473,0.00089981,59448.0,59428.0,0.0813]
[1724803644690,0.00089981,59448.0,59429.0,0.19146077]
[1724803644907,0.00089981,59448.0,59430.0,0.0813]
[1724803645119,0.00753869,59447.0,59431.0,0.19146077]
[1724803645694,0.00089981,59448.0,59431.0,0.19146077]
[1724803645891,0.00825651,59446.0,59431.0,0.19146077]
[1724803646045,0.00089981,59448.0,59431.0,0.19146077]
[1724803646245,0.00825651,59447.0,59431.0,0.19146077]
[1724803646446,0.00089981,59448.0,59431.0,0.20146077]
[1724803646649,0.00825651,59447.0,59431.0,0.20146077]
[1724803646846,0.00089981,59448.0,59431.0,0.19146077]
[1724803647052,0.00825651,59447.0,59433.0,0.0233]
[1724803647278,0.00089981,59448.0,59434.0,0.27336077]
[1724803648465,0.00089981,59448.0,59435.0,1.5]
[1724803648697,0.00089981,59448.0,59437.0,0.0776]
[1724803648901,0.00089981,59448.0,59439.0,0.0776]
[1724803649220,0.00089981,59447.0,59440.0,0.16846077]
[1724803649421,0.00089981,59447.0,59441.0,0.0233]
[1724803649641,0.00089981,59447.0,59443.0,0.48178809]
[1724803649836,0.00089981,59447.0,59444.0,0.35250083]
[1724803650049,0.00089981,59447.0,59445.0,0.077]
[1724803650282,0.00089981,59447.0,59446.0,0.26846077]
[1724803650486,0.00089981,59448.0,59446.0,0.30620083]
[1724803650636,0.00089981,59448.0,59447.0,0.177]
[1724803650839,0.00089981,59448.0,59447.0,0.36846077]
[1724803652068,0.00089981,59448.0,59447.0,0.191]
[1724803652327,0.00089981,59448.0,59447.0,0.25946077]
[1724803652545,0.00089981,59448.0,59447.0,0.27346077]
[1724803652866,0.00089981,59448.0,59447.0,0.105]
[1724803653082,0.00490881,59454.0,59447.0,0.105]
[1724803653305,0.00871531,59448.0,59447.0,0.105]
[1724803653529,0.00490881,59454.0,59447.0,0.27346077]
[1724803653743,0.00490881,59454.0,59448.0,0.16846077]
[1724803654783,0.00490881,59454.0,59449.0,0.023]
[1724803655005,0.00490881,59454.0,59450.0,0.16846077]
[1724803655228,0.00490881,59454.0,59451.0,0.023]
[1724803655419,0.00490881,59454.0,59452.0,0.16846077]
[1724803655615,0.00490881,59454.0,59453.0,0.023]
[1724803655815,0.00490881,59454.0,59448.0,0.014]
[1724803656083,0.00490881,59454.0,59449.0,0.014]
[1724803656276,0.00490881,59454.0,59450.0,0.014]
[1724803656755,0.00490881,59454.0,59451.0,0.16846077]
[1724803656977,0.00490881,59454.0,59452.0,0.0825]
[1724803657194,0.00490881,59454.0,59453.0,0.16846077]
[1724803657681,0.00490881,59454.0,59453.0,0.19146077]
[1724803657897,0.00490881,59454.0,59453.0,0.023]
[1724803658290,0.00490881,59454.0,59452.0,0.014]
[1724803658731,0.00490881,59454.0,59447.0,0.0789]
[1724803658948,0.00490881,59454.0,59453.0,0.028]
[1724803659357,0.00490881,59454.0,59448.0,1.17227]
[1724803659583,0.00490881,59454.0,59443.0,0.4705]
[1724803659584,0.3144,59453.0,59452.0,0.014]
[1724803659794,0.1554045,59453.0,59452.0,0.028]
[1724803660004,0.2554045,59453.0,59452.0,0.028]
[1724803660180,0.4236045,59453.0,59452.0,0.028]
[1724803660400,0.44995587,59453.0,59452.0,0.028]
[1724803660600,0.78635587,59453.0,59452.0,0.028]
[1724803660809,1.45915587,59453.0,59452.0,0.028]
[1724803660964,1.45915587,59453.0,59418.0,0.0233]
[1724803660965,0.005,59433.0,59429.0,0.50540786]
[1724803661168,0.005,59436.0,59429.0,0.50540786]
[1724803661503,0.005,59436.0,59418.0,0.0795]
[1724803661504,0.005,59434.0,59418.0,0.0795]
[1724803662399,0.005,59434.0,59429.0,0.019]
[1724803662641,0.005,59434.0,59429.0,0.007]
[1724803662783,0.005,59434.0,59418.0,0.0795]
[1724803662979,0.02635843,59435.0,59419.0,0.16846077]
[1724803663188,0.0651,59443.0,59420.0,0.0819]
[1724803663390,0.0091145,59454.0,59423.0,0.0758]
[1724803663391,0.02635619,59446.0,59423.0,0.0758]
[1724803663596,0.02635619,59446.0,59424.0,0.16846077]